{"text_format":"1","workbook":"xlsx","n_sheets":3,"sheets":["Hoja1","Hoja2","Hoja3"],"not_rendered":{"charts":0,"images":0,"macros":0,"external_links":0,"defined_names":1,"comments":0,"pivot_tables":0},"unopened":[],"bounds":{"document_bytes":16777216,"sheet_cells":100000,"rows_first":2000,"rows_last":500,"rows_between":2000,"halvings":0,"cell_chars":16384,"cell_head_chars":4096},"cells_cut":0,"cells_raw":0,"read":"whole","date_system":"1900"}

{"sheet":"Hoja1","index":0,"n_rows":98,"n_cols":10,"rows_kept":98,"cut":false,"hidden":false,"merged":[[65,0,65,5],[66,0,66,5],[67,0,67,5],[74,0,80,2],[74,3,80,5],[70,0,70,9],[71,0,73,9],[74,6,80,9],[67,6,67,9],[58,4,58,5],[58,6,58,7],[59,0,59,7],[63,0,63,5],[62,0,62,9],[64,0,64,5],[55,4,55,5],[55,6,55,7],[56,4,56,5],[56,6,56,7],[57,4,57,5],[57,6,57,7],[52,4,52,5],[52,6,52,7],[53,4,53,5],[53,6,53,7],[54,4,54,5],[54,6,54,7],[47,4,47,5],[47,6,47,7],[48,4,48,5],[48,6,48,7],[49,0,49,7],[50,0,50,8],[44,4,44,5],[44,6,44,7],[45,4,45,5],[45,6,45,7],[46,4,46,5],[46,6,46,7],[39,0,39,7],[40,0,40,8],[42,4,42,5],[42,6,42,7],[43,4,43,5],[43,6,43,7],[38,4,38,5],[38,6,38,7],[36,4,36,5],[36,6,36,7],[37,4,37,5],[37,6,37,7],[31,0,31,9],[34,4,34,5],[34,6,34,7],[35,4,35,5],[35,6,35,7],[32,4,32,5],[32,6,32,7],[33,4,33,5],[33,6,33,7],[26,1,26,2],[26,4,26,7],[29,0,29,7],[30,0,30,8],[27,1,27,2],[27,4,27,7],[28,1,28,2],[28,4,28,7],[23,1,23,2],[23,4,23,7],[24,1,24,2],[24,4,24,7],[25,1,25,2],[25,4,25,7],[16,7,17,9],[12,0,12,6],[13,0,14,6],[12,7,12,9],[13,7,14,9],[22,1,22,2],[22,4,22,7],[21,0,21,9],[0,0,0,9],[7,0,7,6],[8,0,9,6],[7,7,7,9],[8,7,9,9],[11,0,11,9],[90,0,90,9],[91,0,91,9],[92,0,92,9],[93,0,93,9],[2,0,4,0],[2,1,4,6],[2,7,4,9],[15,0,15,6],[16,0,17,6],[15,7,15,9],[95,0,95,9],[96,0,96,9],[81,0,81,2],[81,3,81,5],[82,0,82,2],[82,3,82,5],[94,0,94,9],[86,0,87,9],[88,0,88,9],[89,0,89,9],[97,0,97,9],[19,0,19,9],[41,0,41,9],[51,0,51,9],[63,6,63,9],[64,6,64,9],[65,6,65,9],[66,6,66,9],[81,6,81,9],[82,6,82,9]]}
["ANEXO VI - RELACIÓN DE JUSTIFICANTES DE GASTO RELATIVOS AL PROYECTO SUBVENCIONADO\nCUENTA JUSTIFICATIVA SIMPLIFICADA"]
[]
["2012 EUG","Subvenciones para la promoción, difusión y/o normalización del euskera en la socierdad",null,null,null,null,null,"  DIRECCIÓN DE PROMOCIÓN DEL EUSKERA"]
[]
[]
[]
[]
["DENOMINACIÓN DEL PROYECTO",null,null,null,null,null,null,"CÓDIGO"]
[null,null,null,null,null,null,null,"EUG 2012…"]
[]
[]
["ENTIDAD SOLICITANTE"]
["Denominación",null,null,null,null,null,null,"NIF"]
[]
[]
["Nombre y apellidos de la persona que representa a la entidad ",null,null,null,null,null,null,"DNI/pasaporte"]
[]
[]
[]
["Nota: en el supuesto de necesitar más líneas, añada las que precise antes dellegar a la línea N."]
[]
["Gastos de personal "]
[null,"Tipo ",null,"Fecha","Concepto ",null,null,null,"Importe total","Importe imputado"]
[1]
[{"$f":"A24+1","v":2}]
[{"$f":"A25+1","v":3}]
[{"$f":"A26+1","v":4}]
[{"$f":"A27+1","v":5}]
["N"]
["Total gastos de personal",null,null,null,null,null,null,null,{"$f":"SUM(I24:I29)","v":0},{"$f":"SUM(J24:J29)","v":0}]
[]
["Gastos de funcionamiento "]
[null,"Tipo ","Nº","Fecha ","Emisor",null,"Concepto ",null,"Importe total","Importe imputado"]
[1]
[{"$f":"A34+1","v":2}]
[{"$f":"A35+1","v":3}]
[{"$f":"A36+1","v":4}]
[{"$f":"A37+1","v":5}]
["N"]
["Total gastos de funcionamiento",null,null,null,null,null,null,null,{"$f":"SUM(I34:I39)","v":0},{"$f":"SUM(J34:J39)","v":0}]
[]
["Gastos de producción"]
[null,"Tipo","Nº","Fecha","Emisor",null,"Concepto",null,"Importe total","Importe imputado"]
[1]
[{"$f":"A44+1","v":2}]
[{"$f":"A45+1","v":3}]
[{"$f":"A46+1","v":4}]
[{"$f":"A47+1","v":5}]
["N"]
["Total gastos de producción",null,null,null,null,null,null,null,{"$f":"SUM(I44:I49)","v":0},{"$f":"SUM(J44:J49)","v":0}]
[]
["Otros gastos"]
[null,"Tipo","Nº","Fecha","Emisor",null,"Concepto",null,"Importe total","Importe imputado"]
[1]
[2]
[3]
[4]
[5]
["N"]
["Total otros gastos",null,null,null,null,null,null,null,{"$f":"SUM(I54:I59)","v":0},{"$f":"SUM(J54:J59)","v":0}]
[]
[]
["Resumen  de los gastos justificados"]
["Gastos de personal",null,null,null,null,null,{"$f":"J30","v":0}]
["Gastos de funcionamiento",null,null,null,null,null,{"$f":"J40","v":0}]
["Gastos de producción",null,null,null,null,null,{"$f":"J50","v":0}]
["Otros gastos",null,null,null,null,null,{"$f":"J60","v":0}]
["TOTAL",null,null,null,null,null,{"$f":"SUM(G64:J67)","v":0}]
[]
[]
["DECLARACIÓN JURADA"]
["La persona abajo firmante declara bajo su responsabilidad que los datos incluidos son ciertos, que cumple las condiciones impuestas en los artículos 17 y 23 de esta Orden y, en todo caso, manifiesta su disposición a que la Viceconsejería de Política Lingüística compruebe cualquiera de los justificantes relacionados, a fin de obtener evidencia razonable sobre la adecuada aplicación de la subvención, a cuyo fin podrá ser requerida la remisión de los justificantes originales."]
[]
[]
[]
[]
[]
[]
[]
[]
[]
[]
[]
[]
[]
[]
["NOTAS ACLARATORIAS SOBRE LA CUENTA JUSTIFICATIVA SIMPLIFICADA."]
[]
["Al justificar la relación clasificada de los gastos de la actividad, deberán especificarse los siguientes datos:"]
["1.- Tipo: especificar si el justificante es factura, nómina, TC1 o TC2."]
["2.- Número: si el justificante es una factura, el número que se le haya dado o, en su caso, la serie."]
["3.- Fecha: fecha de emisión de la factura. Si es nómina, el mes al que corresponde."]
["4.- Emisor/destinatario: nombre y apellidos o denominación social del emisor de la factura. En el caso de las nóminas, nombre y apellidos de"]
["     la persona empleada."]
["5.- Concepto: el concepto que figura en la factura."]
["6.- Importe total: especificar el importe total de la factura o nómina. (Separar las fracciones decimales mediante comas (,). Por ej.: 15,34)."]
["7.- Importe imputado: especificar de ese importe total qué importe se le imputa al concepto correspondiente."]
["8.- Total: el importe total se corresponderá con la suma de todo lo justificado mediente facturas y nóminas en cada concepto."]

{"sheet":"Hoja2","index":1,"n_rows":0,"n_cols":0,"rows_kept":0,"cut":false,"hidden":false,"merged":[]}

{"sheet":"Hoja3","index":2,"n_rows":0,"n_cols":0,"rows_kept":0,"cut":false,"hidden":false,"merged":[]}